Cogmind - Beta 12 @@@ ROGUE MODE // 2023.10.31 @ 11:46:28 Player: OgamiTringle Result: Destroyed by G-47 Trooper with Particle Gun Performance ------------- Evolutions (2) 1000 Regions Visited (7) 1400 Robots Destroyed (34) 170 Value Destroyed (975) 975 Prototype IDs (1) 20 Alien Tech Used (0) 0 Bonus (0) 0 TOTAL SCORE: 3565 Bonus ------- None Cogmind --------- Core Integrity 0/550 Matter 287/300 Energy 100/100 System Corruption 0% Temperature Cool (18) Movement Core (400) Ox7 Location -8/Materials Parts ------- > --- POWER (3) -------- (None) > --- PROPULSION (4) --- (None) > --- UTILITY (2) ------ Large Storage Unit Improved Terrain Scan Processor > --- WEAPON (2) ------- Katana > --- INVENTORY (15) --- Medium Storage Unit Power Shielding Hardlight Generator Heavy Particle Cannon Gauss Rifle Peak State ------------ > --- POWER ------------ Light Ion Engine Heavy Ion Engine Light Deuterium Engine > --- PROPULSION ------- Light Treads Light Treads Light Treads > --- UTILITY ---------- Large Storage Unit Improved Terrain Scan Processor > --- WEAPON ----------- Gauss Rifle Katana > --- INVENTORY -------- Ion Engine Reinforced Ion Engine Medium Storage Unit Power Shielding Hardlight Generator Heavy Particle Cannon Minigun Minigun Katana [Rating: 23] Favorites ----------- Power Light Ion Engine Engine Light Ion Engine Propulsion Light Treads Treads Light Treads Leg Aluminum Leg Utility Improved Terrain Scan Processor Device Seismic Detector Storage Large Storage Unit Processor Improved Terrain Scan Processor Weapon Katana Energy Cannon Heavy Particle Cannon Ballistic Gun Light Assault Rifle Launcher Grenade Launcher Slashing Weapon Katana Build | -11 -10 -10 -9 -9 -9 -8 -8 ------- Run | Jun Mat Min Mat Min Exi Min Mat Slots Evolved 4 | . . . 2 . . . 2 Power 2 | . . . . . . . 2 Propulsion 2 | . . . 2 . . . . Utility . | . . . . . . . . Weapon . | . . . . . . . . Parts Attached 41 | 6 1 2 14 2 . 1 15 Power 10 | 1 . . 2 1 . . 6 Engine 10 | 1 . . 2 1 . . 6 Core . | . . . . . . . . Reactor . | . . . . . . . . Propulsion 6 | 2 . . 3 . . . 1 Treads 3 | . . . 2 . . . 1 Leg 3 | 2 . . 1 . . . . Wheel . | . . . . . . . . Hover . | . . . . . . . . Flight . | . . . . . . . . Utility 5 | 1 . 1 3 . . . . Device 1 | . . 1 . . . . . Storage 3 | 1 . . 2 . . . . Processor 1 | . . . 1 . . . . Hackware . | . . . . . . . . Protection . | . . . . . . . . Artifact . | . . . . . . . . Weapon 20 | 2 1 1 6 1 . 1 8 Energy Gun . | . . . . . . . . Energy Cannon 1 | . . . . . . . 1 Ballistic Gun 11 | 2 . . 3 . . 1 5 Ballistic Cannon . | . . . . . . . . Launcher 3 | . 1 1 . 1 . . . Special Weapon . | . . . . . . . . Impact Weapon . | . . . . . . . . Slashing Weapon 5 | . . . 3 . . . 2 Piercing Weapon . | . . . . . . . . Special Melee Weapon . | . . . . . . . . Unidentified Prototypes 1 | . . . . . . . 1 Parts Lost 15 | . . . 4 . . 1 10 Power 4 | . . . . . . . 4 Propulsion 5 | . . . 2 . . . 3 Utility 1 | . . . 1 . . . . Weapon 5 | . . . 1 . . 1 3 Highest Loss Streak 9 | . . . 3 . . 1 9 To Critical Strikes . | . . . . . . . . Average Slot Usage (%) 77 | . 85 96 68 77 77 76 77 Engine 13 | . 14 14 11 11 11 11 24 Treads 13 | . . . 4 22 22 22 17 Leg 8 | . 28 28 15 . . . . Device 1 | . . 10 3 . . . . Storage 11 | . 14 14 11 11 11 11 9 Processor 7 | . . . 6 11 11 11 9 Ballistic Gun 5 | . 16 3 5 . . 2 11 Launcher 7 | . 12 24 2 3 11 7 . Slashing Weapon 8 | . . . 8 18 11 11 5 Naked Turns . | . . . . . . . . Heaviest Build 49 | 10 12 15 27 28 28 29 49 Greatest Support 60 | 20 20 20 40 40 40 40 60 Greatest Overweight (x) 15 | . . . 2 . . . 15 Average Overweight (x) . | . . . . . . . . Largest Inventory Capacity 15 | 8 8 8 15 15 15 15 15 Average Capacity 12 | 7 8 8 10 15 15 15 15 Most Carried 11 | 5 4 5 10 10 10 11 11 Average Carried 7 | 1 3 4 6 9 10 10 8 Final Capacity 15 | 8 8 8 15 15 15 15 15 Final Carried 10 | 2 4 5 8 10 10 10 5 Class Distribution -------------------- 96% | Mutant 3% | Scavenger-Mutant Dominant Class ---------------- Mutant | -10/Materials Mutant | -10/Mines Mutant | -9/Materials Mutant | -9/Mines Mutant | -9/Exiles Mutant | -8/Mines Mutant | -8/Materials Resources | -11 -10 -10 -9 -9 -9 -8 -8 ----------- Run | Jun Mat Min Mat Min Exi Min Mat Matter Collected 1014 | 216 . 78 217 95 . 40 368 Remotely . | . . . . . . . . Salvage Created 1146 | . 47 46 211 67 . 24 751 Parts 74 | . 5 6 15 8 . 1 39 Haulers Intercepted . | . . . . . . . . Recyclers Shooed . | . . . . . . . . Parts Field Recycled . | . . . . . . . . Retrieved Matter . | . . . . . . . . Parts Self-Destructed . | . . . . . . . . Prevented . | . . . . . . . . Kills | -11 -10 -10 -9 -9 -9 -8 -8 ------- Run | Jun Mat Min Mat Min Exi Min Mat Combat Hostiles Destroyed 23 | . 2 5 4 3 . 1 8 Melee 6 | . . . 1 3 . 1 1 Guns 9 | . . . 2 . . . 7 AOE 8 | . 2 5 1 . . . . Classes Destroyed 10 | . 2 1 2 1 . 1 3 Worker 1 | . . . 1 . . . . Tunneler 2 | . . . . 1 . . 1 Recycler 3 | . . . . . . . 3 Watcher 5 | . 1 . 2 . . . 2 Swarmer 6 | . . 3 . 3 . . . Grunt 9 | . 2 2 3 . . . 2 Brawler 1 | . . . . . . . 1 Duelist 1 | . . . . . . . 1 Sentry 5 | . . . 1 . . . 4 Hunter 1 | . . . . . . 1 . Best Kill Streak 6 | . 3 3 2 4 . 1 6 Combat Bots Only 3 | . 2 3 2 2 . 1 3 Max Kills in Single Turn 3 | . 1 3 1 1 . 1 2 Gunslinging . | . . . . . . . . Exploded 3 | . 1 3 1 . . . . Melee 1 | . . . 1 1 . 1 1 Uniques/NPCs Destroyed . | . . . . . . . . Combat | -11 -10 -10 -9 -9 -9 -8 -8 -------- Run | Jun Mat Min Mat Min Exi Min Mat Damage Taken 2982 | . 50 94 571 187 . 127 1953 Core 873 | . . 28 224 40 . 29 552 Absorbed by Shields . | . . . . . . . . Core Remaining (%) 71 | 100 . 88 . . . 26 . Volleys Fired 71 | . 3 4 16 . . 4 44 Largest 2 | . 2 2 2 . . 1 2 Hottest 103 | . 50 60 60 . . 30 103 Shots Fired 116 | . 6 8 24 . . 4 74 Gun 93 | . 3 1 20 . . . 69 Cannon 5 | . . . . . . . 5 Launcher 18 | . 3 7 4 . . 4 . Special . | . . . . . . . . Kinetic 93 | . 3 1 20 . . . 69 Thermal 5 | . . . . . . . 5 Explosive 18 | . 3 7 4 . . 4 . Electromagnetic . | . . . . . . . . Robot Hit Streak 8 | . 2 3 5 . . 3 8 Robot Miss Streak 4 | . 1 1 2 . . 1 4 Penetration Max 1 | . . . . . . . 1 Secondary Targets 1 | . . . . . . . 1 Max Gunslinging Chain 1 | . . . . . . . 1 Shots Hit Robots 88 | . 4 4 25 7 . 4 44 Core Hits 64 | . 6 7 14 4 . 2 31 Critical Kills . | . . . . . . . . Critical Parts Destroyed . | . . . . . . . . Critical Strikes 2 | . . . 1 . . . 1 Sever 2 | . . . 1 . . . 1 Melee Attacks 24 | . . . 9 10 . 1 4 Impact . | . . . . . . . . Slashing 24 | . . . 9 10 . 1 4 Piercing . | . . . . . . . . Sneak Attacks 2 | . . . . 2 . . . Combat Hostiles 1 | . . . . 1 . . . Follow-up Attacks . | . . . . . . . . Damage Inflicted 2977 | 1 180 408 775 281 . 149 1183 Guns 961 | . 14 . 129 . . . 818 Cannons 100 | . . . . . . . 100 Explosions 1252 | . 166 408 423 . . 117 138 Melee 663 | . . . 223 281 . 32 127 Ramming 1 | 1 . . . . . . . Kinetic 961 | . 14 . 129 . . . 818 Thermal 359 | . . . 259 . . . 100 Explosive 855 | . 166 408 164 . . 117 . Electromagnetic 138 | . . . . . . . 138 Impact . | . . . . . . . . Slashing 663 | . . . 223 281 . 32 127 Piercing . | . . . . . . . . Highest Corruption 2 | . 2 2 . . . . . Average Corruption 2 | . 2 2 . . . . . Corruption Purged . | . . . . . . . . Corruption Blocked . | . . . . . . . . Effects 3 | . 1 2 . . . . . Matter Fused 2 | . 1 1 . . . . . Data Loss (minor) 1 | . . 1 . . . . . Overload Shots . | . . . . . . . . Overflow Damage 105 | . . 10 82 13 . . . Projectiles . | . . . . . . . . Explosions 82 | . . 10 72 . . . . Melee 23 | . . . 10 13 . . . Knockbacks . | . . . . . . . . Impact . | . . . . . . . . Kinetic . | . . . . . . . . Secondary . | . . . . . . . . Self-Inflicted Damage 193 | . . 39 111 . . . 43 Shots 4 | . . 1 2 . . . 1 Rammed . | . . . . . . . . Targets Rammed 1 | 1 . . . . . . . Kicked 1 | 1 . . . . . . . Crushed . | . . . . . . . . Highest Temperature 521 | . 37 12 21 . . . 521 Average Temperature 188 | . 20 8 9 . . . 225 Received Heat Transfer 1221 | . 27 21 255 . . . 918 Effects 16 | . . . . . . . 16 Shutdowns 5 | . . . . . . . 5 Energy Bleed 6 | . . . . . . . 6 Interference 4 | . . . . . . . 4 Damage (major) 1 | . . . . . . . 1 Siege Activations . | . . . . . . . . Robots Corrupted . | . . . . . . . . Combat Hostiles . | . . . . . . . . Parts Fried . | . . . . . . . . Impact Corruptions . | . . . . . . . . Robots Melted . | . . . . . . . . Combat Hostiles . | . . . . . . . . Parts Melted . | . . . . . . . . Heat Transferred 348 | . . . 200 . . . 148 Parts Sabotaged . | . . . . . . . . Parts Stolen . | . . . . . . . . Parts Stripped . | . . . . . . . . Power Chain Reactions . | . . . . . . . . Missiles Intercepted . | . . . . . . . . Alert | -11 -10 -10 -9 -9 -9 -8 -8 ------- Run | Jun Mat Min Mat Min Exi Min Mat Peak Influence 264 | . 101 169 257 114 . 77 264 Initial 65 | . . . 65 39 . . 29 Average 96 | . 78 105 140 105 . 25 110 Maximum Alert Level 1 | . . . 1 . . . 1 Low Security (%) 88 | 100 100 100 72 100 . 100 76 Level 1 11 | . . . 27 . . . 23 Level 2 . | . . . . . . . . Level 3 . | . . . . . . . . Level 4 . | . . . . . . . . Level 5 . | . . . . . . . . High Security . | . . . . . . . . Max Security . | . . . . . . . . Squads Dispatched . | . . . . . . . . Investigation . | . . . . . . . . Extermination . | . . . . . . . . Reinforcement . | . . . . . . . . Assault . | . . . . . . . . Garrison . | . . . . . . . . Intercept . | . . . . . . . . Searches Triggered . | . . . . . . . . Construction Impeded . | . . . . . . . . Haulers Reinforced . | . . . . . . . . Active Scanning Responses . | . . . . . . . . Cargo Convoy Interrupts . | . . . . . . . . Stealth | -11 -10 -10 -9 -9 -9 -8 -8 --------- Run | Jun Mat Min Mat Min Exi Min Mat Distress Signals 2 | . . . 1 . . . 1 Communications Jammed . | . . . . . . . . Distress Signals . | . . . . . . . . Times Spotted 54 | . 3 5 18 6 . 1 21 Peak Tracking Total 6 | . 3 3 5 3 . 1 6 Tactical Retreats 1 | . . . 1 . . . . Traps | -11 -10 -10 -9 -9 -9 -8 -8 ------- Run | Jun Mat Min Mat Min Exi Min Mat Traps Triggered 1 | . 1 . . . . . . Indirectly . | . . . . . . . . Trap Hack Attempts . | . . . . . . . . Triggered . | . . . . . . . . Disarmed . | . . . . . . . . Reprogrammed . | . . . . . . . . Reused . | . . . . . . . . Traps Extracted . | . . . . . . . . Installed . | . . . . . . . . Triggered 1 | . . . . 1 . . . Machines | -11 -10 -10 -9 -9 -9 -8 -8 ---------- Run | Jun Mat Min Mat Min Exi Min Mat Machines Disabled 5 | . 1 . 1 . . 2 1 Max in Single Turn 1 | . 1 . 1 . . 1 1 Machines Repaired . | . . . . . . . . Machines Sabotaged . | . . . . . . . . Overloaded Fab Kills . | . . . . . . . . Hacking | -11 -10 -10 -9 -9 -9 -8 -8 --------- Run | Jun Mat Min Mat Min Exi Min Mat Machines Accessed 7 | . 2 . 3 . 1 . 1 Terminals 6 | . 2 . 3 . . . 1 Fabricators . | . . . . . . . . Repair Stations . | . . . . . . . . Recycling Units . | . . . . . . . . Scanalyzers . | . . . . . . . . Garrison Access . | . . . . . . . . Total Hacks 34 | . 3 . 6 . 23 . 2 Successful 28 | . 2 . 1 . 23 . 2 Failed 6 | . 1 . 5 . . . . Catastrophic 1 | . 1 . . . . . . Database Lockouts . | . . . . . . . . Manual . | . . . . . . . . Terminals 11 | . 3 . 6 . . . 2 Fabricators . | . . . . . . . . Repair Stations . | . . . . . . . . Recycling Units . | . . . . . . . . Scanalyzers . | . . . . . . . . Garrison Access . | . . . . . . . . Terminal Hacks 28 | . 2 . 1 . 23 . 2 Record 25 | . . . 1 . 23 . 1 Alert Level 2 | . 1 . . . . . 1 Unreport Threat 1 | . 1 . . . . . . Fabricator Hacks . | . . . . . . . . Repair Station Hacks . | . . . . . . . . Recycling Unit Hacks . | . . . . . . . . Scanalyzer . | . . . . . . . . Garrison Access Hacks . | . . . . . . . . Unauthorized Hacks . | . . . . . . . . Terminals . | . . . . . . . . Fabricators . | . . . . . . . . Repair Stations . | . . . . . . . . Recycling Units . | . . . . . . . . Scanalyzers . | . . . . . . . . Garrison Access . | . . . . . . . . Data Cores Recovered . | . . . . . . . . Used . | . . . . . . . . Hacking Detections 3 | . 1 . 2 . . . . Full Trace Events 1 | . . . 1 . . . . Feedback Events . | . . . . . . . . Feedback Blocked . | . . . . . . . . Robot Schematics Acquired . | . . . . . . . . Robots Built . | . . . . . . . . Authchips . | . . . . . . . . Time . | . . . . . . . . Total Robot Build Rating . | . . . . . . . . Part Schematics Acquired . | . . . . . . . . Parts Built . | . . . . . . . . Authchips . | . . . . . . . . Time . | . . . . . . . . Total Part Build Rating . | . . . . . . . . Parts Repaired . | . . . . . . . . Time . | . . . . . . . . Parts Recycled . | . . . . . . . . Recycled Matter . | . . . . . . . . Retrieved Matter . | . . . . . . . . Retrieved Components . | . . . . . . . . Parts Scanalyzed . | . . . . . . . . Part Schematics Acquired . | . . . . . . . . Parts Damaged . | . . . . . . . . Bothacking | -11 -10 -10 -9 -9 -9 -8 -8 ------------ Run | Jun Mat Min Mat Min Exi Min Mat Used RIF Installer . | . . . . . . . . Robots Hacked . | . . . . . . . . Non-combat . | . . . . . . . . Combat . | . . . . . . . . Robot Hacks Applied . | . . . . . . . . Relay Couplers Released . | . . . . . . . . Fabnet Peak Effective % . | . . . . . . . . Robots Rewired . | . . . . . . . . Allies Hacked . | . . . . . . . . Hacks Repelled . | . . . . . . . . Allies | -11 -10 -10 -9 -9 -9 -8 -8 -------- Run | Jun Mat Min Mat Min Exi Min Mat Total Allies 2 | . . . . 2 . . . Largest Group 2 | . . . . 2 1 . . Highest-Rated Group 45 | . . . . 45 31 . . Highest-Rated Ally 31 | . . . . 31 31 . . Total Orders . | . . . . . . . . Ally Attacks 6 | . . . . 6 . . . Total Damage 106 | . . . . 106 . . . Kills 2 | . . . . 2 . . . Allies Corrupted . | . . . . . . . . Allies Melted . | . . . . . . . . Intel | -11 -10 -10 -9 -9 -9 -8 -8 ------- Run | Jun Mat Min Mat Min Exi Min Mat Robot Analysis Total . | . . . . . . . . Derelict Logs Recovered 2 | . . 1 . 1 . . . Drone Launches . | . . . . . . . . Drone Recoveries . | . . . . . . . . Exploration | -11 -10 -10 -9 -9 -9 -8 -8 ------------- Run | Jun Mat Min Mat Min Exi Min Mat Turns Passed 2843 | 141 281 223 576 403 524 263 432 Spaces Moved 1506 | 101 140 172 268 217 318 145 145 Core 20 | 15 . . . . . . 5 Treads 895 | . . . 75 217 318 145 140 Legs 591 | 86 140 172 193 . . . . Wheels . | . . . . . . . . Hover . | . . . . . . . . Flight . | . . . . . . . . Fastest Speed 50 | 50 120 120 120 160 160 160 160 Average Speed 151 | 109 120 120 158 160 160 160 191 Slowest Speed 800 | 120 120 120 260 160 160 160 800 Overloaded Moves . | . . . . . . . . Propulsion Burnouts . | . . . . . . . . Robots Hopped . | . . . . . . . . Cave-ins Triggered . | . . . . . . . . Exploration Rate (%) 30 | 4 29 39 24 28 61 43 16 Regions Visited 7 Branch Regions 4 Pre-discovered Areas 1 | . . . . . 1 . . Known Exits Taken . | . . . . . . . . Unknown Exits Taken 7 | 1 1 1 1 1 1 1 . Scrap Searched 5 | . . 2 . . . 3 . Spaces Dug . | . . . . . . . . Terrain Destroyed 111 | . 16 46 35 . . 12 2 Melee . | . . . . . . . . Projectile 2 | . . . . . . . 2 AOE 109 | . 16 46 35 . . 12 . Terrain Rammed . | . . . . . . . . Walls Destroyed . | . . . . . . . . Machines Disabled . | . . . . . . . . Actions | -11 -10 -10 -9 -9 -9 -8 -8 --------- Run | Jun Mat Min Mat Min Exi Min Mat Total 1932 | 131 247 180 384 257 333 171 229 Wait 251 | 16 102 1 65 27 15 20 5 Move 1499 | 100 139 171 267 216 317 144 145 Hop . | . . . . . . . . Pick Up 33 | 8 2 2 9 2 . 1 9 Fast Attach . | . . . . . . . . Attach 22 | 6 . 1 7 . . 1 7 Detach 2 | . . . 2 . . . . Swap 19 | . 1 1 7 2 . . 8 Drop 9 | . . . 2 . . . 7 Fire 71 | . 3 4 16 . . 4 44 Melee 24 | . . . 9 10 . 1 4 Ram . | . . . . . . . . Kick 1 | 1 . . . . . . . Crush . | . . . . . . . . Escape Stasis . | . . . . . . . . Rewire 1 | . . . . . 1 . . Trap . | . . . . . . . . Miscellaneous . | . . . . . . . . Route ------- -11/Junkyard -10/Materials -10/Mines (discovered 2 exits: *Mat x2) -9/Materials (discovered 2 exits: [*Min x2]) -9/Mines -9/Exiles (discovered 2 exits: [*Min x2]) -8/Mines -8/Materials History --------- Turn | Location | Event 21 | -11/Junkyard | Discovered new exit (range 15) 142 | -11/Junkyard | Entered Materials 286 | -10/Materials | Discovered new exit (range 16) 317 | -10/Materials | Build established: Mutant 423 | -10/Materials | Entered Mines 561 | -10/Mines | Learned Materials trap positions 577 | -10/Mines | Discovered new exit (range 14) 596 | -10/Mines | Discovered new exit (range 8) 646 | -10/Mines | Entered Materials 646 | -9/Materials | Evolved 2 slots: Propulsion x2 647 | -9/Materials | Loaded intel: 11 trap records 847 | -9/Materials | Lost 3 parts (2n1u) 862 | -9/Materials | Discovered new exit (range 15) 1009 | -9/Materials | Discovered new exit (range 7) 1079 | -9/Materials | Core integrity fell below 50% 1222 | -9/Materials | Entered Mines 1386 | -9/Mines | Learned Materials terminal intel 1440 | -9/Mines | Assembled infested the area 1521 | -9/Mines | Met 8R-AWN 1619 | -9/Mines | Discovered new exit (range 5) 1625 | -9/Mines | Entered Exiles 1625 | -9/Exiles | Accompanied by 1 ally 1655 | -9/Exiles | Led the pair of lost Derelicts to a safe place 1669 | -9/Exiles | Welcomed by 8R-AWN 1698 | -9/Exiles | Met EX-HEX 1762 | -9/Exiles | Met EX-DEC 1771 | -9/Exiles | Learned location of Zion (-7) 1837 | -9/Exiles | Discovered new exit (range 14) 2088 | -9/Exiles | Learned about 8R-AWN's background 2126 | -9/Exiles | Discovered new exit (range 15) 2149 | -9/Exiles | Entered Mines 2390 | -8/Mines | Discovered new exit (range 9) 2412 | -8/Mines | Entered Materials 2412 | -8/Materials | Evolved 2 slots: Power x2 2413 | -8/Materials | Loaded intel: 12 terminal locations 2801 | -8/Materials | Core integrity fell below 50% 2831 | -8/Materials | Core integrity fell below 20% 2844 | -8/Materials | Destroyed by G-47 Trooper with Particle Gun Last Messages --------------- 02810_ Slug penetrates L-31 Rogue. 02811_ Overheating: System interference. 02811_ Gauss Rifle temporarily disabled. 02811_ Imp. Terrain Scan Processor temporarily disabled. 02811_ Gauss Rifle temporarily disabled. 02812_ Overheating: Gauss Rifle damaged (-39). 02812_ Rnf. Ion Engine destroyed. 02815_ Overheating: System interference. 02815_ Hvy. Particle Cannon temporarily disabled. 02820_ Minigun severed. 02820_ L-31 Rogue destroyed. 02823_ U-05 Engineer builds a Wall. 02824_ Power failure, Lgt. Ion Engine shutdown. 02825_ Minigun destroyed. 02828_ Critical hit (Burn: +37). 02828_ U-05 Engineer builds a Door. 02830_ Acquired 58 matter. 02835_ Lgt. Ion Engine destroyed. 02839_ G-47 Trooper Aluminum Leg severed. 02840_ G-47 Trooper destroyed. Map ----- +----------------------------------------------------+ | ?????????????????????????????????????????????????? | | ?????????????????????????????????????????????????? | | ?????????????????????????????????????????????????? | | ?????????????????????????????????????????????????? | | ?????????????????????????????????????????????????? | | ?????????????????????????????????????????????????? | | ?????????????????????????????????????????????????? | | ??????????????????????????"T"????????????????????? | | ?????????????????????????????????????????????????? | | ?????????????????????????????????????????????????? | | ?????????????????????????????????????????????????? | | ???????????????????? ????????????????????????????? | | ??????????????????? ????????????????????????????? | | ???????????????????? ????????????????????????????? | | ???????????????????? ???????????????????????????? | | ????????????????????#a???????????????????????????? | | ????????????????????#t???????????????????????????? | | ??????????????????### ##?????????????????????????? | | ??????????????????# g ?????????????????????????? | | ??????????????????# g #????????????????????????? | | ??????????????????? #####????????????????????? | | ???????????????????? ?????????????????????? | | ????????????????????? =u%! #?????????????????????? | | ??????????????????????#%!==#?????????????????????? | | ??????????????????????#*=[u#?????????????????????? | | ?????????????????????##[t@g#?????????????????????? | | ???????????????########^!!%#?????????????????????? | | ??????????????# ![+[!%=#?????????????????????? | | ??????????????# "T" !%#=####?????????????????????? | | ??????????????? """ =?#!#????????????????????????? | | ??????????????# ??#*#????????????????????????? | | ??????????????####????#*#????????????????????????? | | ????????????????????###/######???????????????????? | | ????????????????????#!==!! #???????????????????? | | ????????????????????# =""" ! #???????????????????? | | ????????????????????# """ #???????????????????? | | ????????????????????# """ #???????????????????? | | ????????????????????# #???????T???????????? | | ??????????????T?????# #???????????????????? | | ????????????????????# #???????????????????? | | ????????????????????# #???????????????????? | | ????????????????????# !| = #???????????????????? | | ????????#???????????#####"####???????????????????? | | ????????# ###########== = #????????????????????? | | ????????# % #????????????????????? | | ????????# T #????????????????????? | | ????????# #????????????????????? | | ??????????#########+### #????????????????????? | | ????????????# ## ##????????????????????? | | ????????????# """ [ ## #?????????????????????? | +----------------------------------------------------+ Best States ------------- Heat Dissipation 31 Energy Generation 30 Energy Capacity 485 Matter Stores 300 Matter Capacity 300 Sight Range 16 Terrain Scan Density 110 Evasion (%) 55 Recoil Reduction 3 Item Schematics ----------------- None Robot Schematics ------------------ None Fabricated ------------ Nothing Alien Tech Used ----------------- None Achievements -------------- Everything Is Under Control I Survived The Infestation Please Form A Line Tourist Challenges ------------ None Game ------ Seed WeldingAlphaCutter Manual? 0 Play Time 00:31:50 Cumulative 2.9 hours Start 2023.10.30 @ 21:31:17 End 2023.10.31 @ 11:46:28 Sessions 3 Manual Loads 0 Difficulty Rogue Special Mode None Game No. 8 Rogue 8 Adventurer 0 Explorer 0 Win Type - Total 0 Types 0/0/0/0/0/0/0/0/0 Lore% 6 Gallery% 7 Achievement% 8 Wizard Run 0 Options --------- ASCII 0 Keyboard 0 Movement Mouse Keybinds 0 Fullscreen 1 Font 24/Smallcaps Map View 76x50 Tactical HUD 1 Map Filters NONE Filters NONE Steam 1 RUN: 35d38bbe-37aa-4973-accb-1ec764031da8